bitfinex-derivatives/quotes_SOLF0:USTF0_20251107
["timestamp","ask_amount","ask_price","bid_price","bid_amount"]
[1762509337504,2.16,154.64,154.63,0.04188436]
[1762509338908,6.9617574,154.64,154.63,0.04188436]
[1762509339393,2.15,154.66,154.63,0.04188436]
[1762509340405,7.9726,154.66,154.63,0.04188436]
[1762509340605,2.15,154.65,154.63,0.04188436]
[1762509344498,7.9723,154.67,154.63,3.17188436]
[1762509344807,4.79923539,154.66,154.63,3.17188436]
[1762509345001,2.15,154.67,154.63,3.17188436]
[1762509346309,2.15,154.72,154.64,8.9531]
[1762509346508,2.15,154.7,154.66,0.04974136]
[1762509346714,2.15,154.68,154.66,0.04974136]
[1762509347108,6.94753182,154.67,154.66,0.04974136]
[1762509347307,2.15,154.67,154.66,0.04974136]
[1762509347510,6.94680776,154.67,154.66,0.04974136]
[1762509348008,2.15,154.67,154.66,0.04974136]
[1762509353425,2.15,154.68,154.66,0.04974136]
[1762509354027,2.15,154.7,154.66,3.17974136]
[1762509354623,2.15,154.68,154.66,0.04974136]
[1762509355330,2.15,154.67,154.66,0.04974136]
[1762509358931,6.94323211,154.67,154.66,0.04974136]
[1762509359634,2.15,154.67,154.66,0.04974136]
[1762509360332,6.99658079,154.67,154.66,0.04974136]
[1762509360725,2.15,154.67,154.66,0.04974136]
[1762509362336,6.99692886,154.67,154.66,0.04974136]
[1762509363136,6.99692886,154.67,154.66,3.17974136]
[1762509363137,4.84692886,154.67,154.66,3.17974136]
[1762509363335,7.9712,154.7,154.66,3.17974136]
[1762509363530,4.84735097,154.69,154.66,3.17974136]
[1762509363725,2.15,154.69,154.66,3.17974136]
[1762509363934,7.9714,154.69,154.66,3.17974136]
[1762509365838,2.15,154.75,154.68,3.13]
[1762509366036,11.90275309,154.74,154.71,3.13]
[1762509366340,6.9994348,154.73,154.71,0.04764597]
[1762509366544,3.91600923,154.78,154.71,3.17764597]
[1762509366837,2.15,154.76,154.71,3.17764597]
[1762509367038,6.99944575,154.75,154.71,3.17764597]
[1762509367233,2.15,154.75,154.71,3.17764597]
[1762509367430,2.15,154.75,154.71,0.04764597]
[1762509367431,4.84789535,154.74,154.71,0.04764597]
[1762509367628,2.15,154.72,154.71,0.04764597]
[1762509368446,2.15,154.75,154.71,3.17764597]
[1762509368736,6.99671475,154.74,154.71,3.17764597]
[1762509368940,2.15,154.74,154.71,3.17764597]
[1762509369536,2.15,154.75,154.71,8.99804597]
[1762509369729,5.91150532,154.8,154.72,3.13]
[1762509369931,2.15,154.78,154.74,0.04443085]
[1762509370134,2.15,154.76,154.74,0.04443085]
[1762509374950,7.9669,154.81,154.74,3.08443085]
[1762509375240,2.15,154.79,154.76,0.0431179]
[1762509375434,2.15,154.79,154.76,0.04553158]
[1762509376645,2.15,154.77,154.76,0.04553158]
[1762509376837,2.15,154.76,154.75,0.04366316]
[1762509381443,3.91600923,154.76,154.75,0.04366316]
[1762509381650,5.8202,154.72,154.66,1.76600923]
[1762509381851,2.15,154.71,154.67,3.04]
[1762509382348,2.15,154.71,154.67,8.8619]
[1762509382549,2.15,154.71,154.68,3.04]
[1762509382737,2.19578358,154.71,154.68,3.08665852]
[1762509383344,2.19578358,154.71,154.68,0.04665852]
[1762509384346,2.15,154.69,154.68,0.04665852]
[1762509385346,2.15,154.69,154.62,1.76600923]
[1762509385347,7.9721,154.67,154.61,8.8641]
[1762509385549,2.15,154.67,154.61,3.04]
[1762509386151,7.9712,154.7,154.64,3.04]
[1762509386450,7.9712,154.7,154.65,0.04511101]
[1762509386451,2.15,154.68,154.65,0.04511101]
[1762509386750,2.15,154.66,154.65,0.04511101]
[1762509387145,2.15,154.68,154.65,0.04511101]
[1762509387549,0.04628227,154.69,154.65,3.08511101]
[1762509387744,2.19628227,154.69,154.65,3.08511101]
[1762509388251,0.04628227,154.69,154.65,3.08511101]
[1762509389350,2.19628227,154.69,154.65,3.08511101]
[1762509389547,2.19628227,154.69,154.65,8.90771101]
[1762509389745,2.19628227,154.69,154.66,3.04]
[1762509389951,0.04628227,154.69,154.66,4.80600923]
[1762509390247,0.04628227,154.69,154.67,3.04]
[1762509390845,2.19628227,154.69,154.65,0.04511101]
[1762509391245,2.19628227,154.69,154.65,3.08511101]
[1762509391751,2.19628227,154.69,154.66,3.04]
[1762509392045,0.04628227,154.69,154.66,3.04]
[1762509392245,0.04628227,154.69,154.66,10.62830923]
[1762509392440,0.04628227,154.69,154.67,3.04]
[1762509393150,0.04628227,154.69,154.68,4.80600923]
[1762509393444,0.04628227,154.69,154.65,0.04511101]
[1762509393653,2.19628227,154.69,154.66,3.04]
[1762509394151,8.01768227,154.69,154.65,0.04511101]
[1762509394343,2.15,154.68,154.65,0.04511101]
[1762509394852,2.15,154.67,154.65,0.04511101]
[1762509395446,2.15,154.66,154.65,0.04511101]
[1762509397351,1.76600923,154.67,154.57,1.76600923]
[1762509397547,2.15,154.62,154.54,10.63270923]
[1762509398056,7.9741,154.62,154.55,3.04]
[1762509398258,7.9741,154.62,154.56,3.04]
[1762509398451,0.04467434,154.61,154.57,3.0842397]
[1762509398646,8.01917434,154.61,154.57,0.0442397]
[1762509398849,2.15,154.6,154.57,0.0442397]
[1762509399251,7.9748,154.6,154.57,0.0442397]
[1762509399557,2.16,154.59,154.57,0.0442397]
[1762509401851,0.04467434,154.61,154.59,3.24]
[1762509402159,0.04467434,154.61,154.6,5.00600923]
[1762509402554,2.16,154.67,154.6,5.00600923]
[1762509402754,2.16,154.67,154.61,3.24]
[1762509402955,2.16,154.67,154.62,1.76600923]
[1762509403258,2.16,154.67,154.63,3.24]
[1762509403558,2.16,154.75,154.67,3.24]
[1762509403956,2.16,154.72,154.69,0.04414192]
[1762509405163,0.04101619,154.73,154.69,3.23414192]
[1762509405357,2.19101619,154.73,154.69,3.23414192]
[1762509405558,2.19101619,154.73,154.69,0.04414192]
[1762509405760,2.15,154.72,154.69,0.04414192]
[1762509407263,7.9703,154.72,154.69,0.04414192]
[1762509407465,2.15,154.71,154.69,0.04414192]
[1762509407667,0.04101619,154.73,154.69,3.23414192]
[1762509407964,2.19101619,154.73,154.69,3.23414192]
[1762509410969,2.19101619,154.73,154.69,0.04414192]
[1762509416174,2.19101619,154.73,154.69,3.23414192]
[1762509416376,0.04101619,154.73,154.69,3.23414192]
[1762509417569,2.19101619,154.73,154.69,3.23414192]
[1762509417873,2.19101619,154.73,154.69,0.04414192]
[1762509418664,2.15,154.71,154.63,3.19]
[1762509418872,2.15,154.69,154.63,3.19]
[1762509419771,2.19937344,154.68,154.64,0.04740713]
[1762509419972,2.1943933,154.68,154.64,0.04266599]
[1762509421172,4.85891461,154.67,154.64,0.04266599]
[1762509421379,2.15,154.66,154.64,0.04266599]
[1762509422077,4.86080145,154.65,154.57,3.19]
[1762509422278,2.15,154.64,154.57,3.19]
[1762509423170,0.04340612,154.62,154.59,0.04553836]
[1762509423767,2.19340612,154.62,154.59,0.04553836]
[1762509424172,2.19340612,154.62,154.49,112.46958973]
[1762509424173,4.86246317,154.61,154.53,3.19]
[1762509424374,4.49657321,154.65,154.53,3.19]
[1762509424375,2.15,154.6,154.53,3.19]
[1762509425266,0.04304088,154.58,154.55,3.23795053]
[1762509425973,2.19304088,154.58,154.55,0.04795053]
[1762509428182,2.19304088,154.58,154.55,3.23795053]
[1762509428378,2.19304088,154.58,154.55,0.04795053]
[1762509432680,2.15,154.56,154.41,2.76315718]
[1762509432882,2.15,154.54,154.42,3.19]
[1762509433285,2.15,154.54,154.43,3.19]
[1762509433484,2.15,154.54,154.45,3.19]
[1762509433680,0.04112167,154.5,154.48,3.19]
[1762509434381,0.04112167,154.5,154.48,5.95315718]
[1762509435284,0.04112167,154.5,154.48,6.00315718]
[1762509435485,2.15,154.54,154.49,3.24]
[1762509435682,2.15,154.54,154.51,2.76315718]
[1762509436682,0.04472368,154.54,154.51,6.04885168]
[1762509436884,0.04472368,154.54,154.52,3.24]
[1762509437479,2.16,154.58,154.52,3.24]
[1762509437686,2.16,154.58,154.54,2.76315718]
[1762509438490,2.20252079,154.58,154.54,2.81255908]
[1762509439089,2.20252079,154.58,154.54,6.05255908]
[1762509439786,2.20252079,154.58,154.54,2.81255908]
[1762509440192,2.20252079,154.58,154.54,0.0494019]
[1762509440892,2.20252079,154.58,154.55,3.24]
[1762509441085,0.04252079,154.58,154.55,3.24]
[1762509441285,0.04252079,154.58,154.57,2.76315718]
[1762509441680,2.16,154.65,154.58,3.24]
[1762509442586,2.16,154.62,154.6,0.04722674]
[1762509446281,2.16,154.61,154.53,6.00315718]
[1762509446893,2.16,154.61,154.54,3.24]
[1762509447286,0.04424772,154.59,154.56,0.0413666]
[1762509447484,0.04424772,154.59,154.56,3.2813666]
[1762509457891,2.20424772,154.59,154.56,0.0413666]
[1762509460600,2.20424772,154.59,154.5,3.12]
[1762509460789,19.4,154.65,154.5,3.12]
[1762509460790,2.16,154.57,154.5,3.12]
[1762509461596,2.20359106,154.55,154.52,0.04905342]
[1762509461902,2.20448108,154.55,154.52,0.04631308]
[1762509462798,7.02641966,154.54,154.52,0.04631308]
[1762509463101,2.20448108,154.55,154.52,0.04631308]
[1762509463299,4.87153371,154.54,154.52,0.04631308]
[1762509463496,2.20448108,154.55,154.52,0.04631308]
[1762509463801,7.03153371,154.54,154.52,0.04631308]
[1762509464009,2.16,154.54,154.52,0.04631308]
[1762509464302,4.8736346,154.53,154.52,0.04631308]
[1762509465101,2.15,154.53,154.52,0.04631308]
[1762509466002,7.02613054,154.53,154.52,0.04631308]
[1762509466200,7.02979194,154.53,154.52,0.04631308]
[1762509466399,4.87979194,154.53,154.52,0.04631308]
[1762509467798,2.15,154.54,154.52,0.04631308]
[1762509469396,0.04448108,154.55,154.53,3.22]
[1762509470193,2.15,154.54,154.52,0.04631308]
[1762509470493,4.77715844,154.64,154.53,5.98297419]
[1762509470699,9.65996429,154.63,154.56,2.76297419]
[1762509471006,9.65996429,154.62,154.56,2.76297419]
[1762509471199,9.65996429,154.61,154.56,2.76297419]
[1762509471400,9.7025077,154.6,154.57,0.04699938]
[1762509471602,4.88280585,154.59,154.57,0.04427476]
[1762509471802,19.4,154.68,154.57,3.26427476]
[1762509472108,9.66220902,154.67,154.61,2.76297419]
[1762509472407,9.66220902,154.66,154.61,2.76297419]
[1762509472706,4.88340531,154.65,154.61,2.76297419]
[1762509473002,4.88340531,154.64,154.61,2.80949589]
[1762509473207,0.0412324,154.65,154.61,2.80949589]
[1762509473401,4.88152345,154.64,154.61,2.80949589]
[1762509473709,0.0412324,154.65,154.61,2.80949589]
[1762509473912,4.88152413,154.64,154.61,2.80949589]
[1762509474202,4.96037036,154.63,154.61,6.02949589]
[1762509474403,0.0412324,154.65,154.62,3.22]
[1762509474604,9.84010511,154.64,154.62,3.22]
[1762509474800,4.95946733,154.63,154.62,3.22]
[1762509475003,0.0412324,154.65,154.62,3.22]
[1762509478813,0.0412324,154.65,154.61,0.0465217]
[1762509479210,0.0412324,154.65,154.61,3.2665217]
[1762509480118,0.0412324,154.65,154.61,0.0465217]
[1762509480525,9.83740447,154.64,154.61,0.0465217]
[1762509480717,4.88998013,154.63,154.61,0.0465217]
[1762509480918,0.0412324,154.65,154.61,0.0465217]
[1762509481117,9.83644387,154.64,154.61,0.0465217]
[1762509481319,4.88930418,154.63,154.61,0.0465217]
[1762509481518,0.0412324,154.65,154.61,0.0465217]
[1762509481717,9.83898304,154.64,154.61,0.0465217]
[1762509481919,4.8904443,154.63,154.61,3.2665217]
[1762509482228,0.0412324,154.65,154.61,3.2665217]
[1762509482525,9.83797721,154.64,154.61,3.2665217]
[1762509482726,4.89005835,154.63,154.61,3.2665217]
[1762509482927,0.0412324,154.65,154.61,0.0465217]
[1762509483231,9.83797473,154.64,154.61,0.0465217]
[1762509483424,4.89005721,154.63,154.61,0.0465217]
[1762509483628,0.0412324,154.65,154.61,0.0465217]
[1762509483830,9.83816736,154.64,154.61,0.0465217]
[1762509484029,4.89017699,154.63,154.61,0.0465217]
[1762509484330,0.0412324,154.65,154.61,0.0465217]
[1762509484531,9.83565424,154.64,154.61,0.0465217]
[1762509484731,4.88891935,154.63,154.61,0.0465217]
[1762509484928,4.8876781,154.62,154.55,3.22]
[1762509485125,4.8876781,154.61,154.55,3.22]
[1762509485431,53.96316388,154.69,154.55,3.22]
[1762509485728,29.23432107,154.68,154.55,3.22]
[1762509485929,0.04954945,154.63,154.6,0.04471583]
[1762509486131,9.83432107,154.62,154.6,0.04471583]
[1762509486322,0.04954945,154.63,154.6,0.04471583]
[1762509486323,4.88847846,154.61,154.6,0.04471583]
[1762509487727,0.04954945,154.63,154.6,3.26471583]
[1762509487926,9.83495883,154.62,154.6,3.26471583]
[1762509488129,0.04954945,154.63,154.6,3.26471583]
[1762509488328,9.83490579,154.62,154.6,3.26471583]
[1762509488627,0.04954945,154.63,154.6,3.26471583]
[1762509488828,9.83487147,154.62,154.6,3.26471583]
[1762509489132,0.04954945,154.63,154.6,0.04471583]
[1762509489331,4.94603342,154.62,154.6,0.04471583]
[1762509489532,0.04954945,154.63,154.6,0.04471583]
[1762509489732,4.94602852,154.62,154.6,0.04471583]
[1762509489933,0.04954945,154.63,154.6,0.04471583]
[1762509490232,0.04954945,154.63,154.6,3.26471583]
[1762509492234,0.04954945,154.63,154.6,0.04471583]
[1762509492433,4.94573102,154.62,154.6,0.04471583]
[1762509492630,0.04954945,154.63,154.6,0.04471583]
[1762509492931,4.94573873,154.62,154.6,0.04471583]
[1762509493135,0.04954945,154.63,154.6,0.04471583]
[1762509493336,4.94665941,154.62,154.6,0.04471583]
[1762509493535,0.04954945,154.63,154.6,0.04471583]
[1762509493736,4.94635874,154.62,154.6,0.04471583]
[1762509493928,0.04954945,154.63,154.6,0.04471583]
[1762509494129,4.94635791,154.62,154.6,0.04471583]
[1762509494428,0.04954945,154.63,154.6,0.04471583]
[1762509494630,4.94642342,154.62,154.6,0.04471583]
[1762509494837,0.04954945,154.63,154.6,3.11471583]
[1762509495541,0.04954945,154.63,154.6,0.04471583]
[1762509496540,4.94633087,154.62,154.6,0.04471583]
[1762509496737,1.7677728,154.62,154.6,0.04471583]
[1762509496931,4.94601156,154.61,154.6,0.04471583]
[1762509497440,1.7677728,154.62,154.6,0.04471583]
[1762509499240,4.89334907,154.61,154.6,0.04471583]
[1762509499850,0.04954945,154.63,154.6,3.11471583]
[1762509502838,11.61410765,154.62,154.6,0.04471583]
[1762509503046,9.84633485,154.61,154.56,3.07]
[1762509503242,1.7677728,154.59,154.56,3.07]
[1762509503444,1.7677728,154.59,154.51,3.07]
[1762509503646,1.7677728,154.59,154.52,3.07]
[1762509503948,1.7677728,154.61,154.53,3.07]
[1762509504239,90.5407,154.72,154.45,62.0]
[1762509504240,0.04743432,154.59,154.56,4.8377728]
[1762509504441,4.95288823,154.64,154.57,3.07]
[1762509504637,4.89517784,154.63,154.57,3.07]
[1762509504842,0.05,154.68,154.59,3.07]
[1762509505040,9.84810165,154.67,154.59,3.07]
[1762509505241,9.84810165,154.66,154.59,3.07]
[1762509505549,5.8236,154.63,154.61,3.11200813]
[1762509505849,5.8236,154.63,154.61,3.07]
[1762509506936,4.89521035,154.62,154.61,3.07]
[1762509507547,5.8236,154.63,154.61,3.07]
[1762509508148,4.89908432,154.62,154.61,3.07]
[1762509508450,5.8243,154.61,154.6,0.04715572]
[1762509508747,10.72338432,154.61,154.6,0.04715572]
[1762509509449,15.7109884,154.61,154.6,0.04715572]
[1762509510449,15.7609884,154.61,154.6,0.04715572]
[1762509515157,5.8253,154.59,154.55,3.07]
[1762509515357,4.89908432,154.58,154.55,3.07]
[1762509515556,5.8253,154.59,154.55,3.07]
[1762509515757,4.87348348,154.58,154.55,3.07]
[1762509515953,5.8253,154.59,154.55,3.07]
[1762509516149,4.8734829,154.58,154.55,3.11277935]
[1762509516349,5.87143158,154.59,154.55,3.11277935]
[1762509516546,4.87404419,154.58,154.55,3.11277935]
[1762509516750,5.87143158,154.59,154.55,3.11277935]
[1762509516950,4.87404451,154.58,154.55,3.11277935]
[1762509517154,5.87143158,154.59,154.55,3.11277935]
[1762509517361,4.8736711,154.58,154.55,3.11277935]
[1762509517550,5.87143158,154.59,154.55,3.11277935]
[1762509517746,4.8736711,154.58,154.55,3.11277935]
[1762509517950,5.87143158,154.59,154.55,3.11277935]
[1762509518153,4.87134054,154.58,154.55,3.11277935]
[1762509518352,5.87143158,154.59,154.55,3.11277935]
[1762509518654,4.87009225,154.58,154.55,3.11277935]
[1762509518846,5.87143158,154.59,154.55,3.11277935]
[1762509519050,4.87009454,154.58,154.55,3.11277935]
[1762509519247,5.87143158,154.59,154.55,3.11277935]
[1762509519550,4.86979834,154.58,154.56,3.16]
[1762509519752,0.04613158,154.59,154.56,3.16]
[1762509521058,0.04613158,154.59,154.57,3.16]
[1762509522655,0.04613158,154.59,154.58,3.16]
[1762509523162,4.91930831,154.59,154.58,3.16]
[1762509524058,0.04613158,154.59,154.58,3.16]
[1762509526163,1.81759942,154.64,154.58,3.16]
[1762509526363,9.87586302,154.63,154.58,3.16]
[1762509526563,9.87586302,154.62,154.58,3.16]
[1762509526864,9.87586302,154.61,154.58,3.16]
[1762509527064,9.87586302,154.6,154.58,3.2085293]
[1762509527263,0.04618367,154.61,154.58,3.2085293]
[1762509527465,9.87616138,154.6,154.58,3.2085293]
[1762509527658,0.04618367,154.61,154.58,3.2085293]
[1762509527854,9.8761614,154.6,154.58,3.2085293]
[1762509528054,0.04618367,154.61,154.58,3.2085293]
[1762509528259,9.87632053,154.6,154.58,3.2085293]
[1762509528459,0.04618367,154.61,154.58,3.2085293]
[1762509528764,9.87646801,154.6,154.58,3.2085293]
[1762509528955,0.04618367,154.61,154.58,3.2085293]
[1762509529159,9.87589866,154.6,154.58,3.2085293]
[1762509529471,0.04618367,154.61,154.58,3.2085293]
[1762509529764,9.87621813,154.6,154.58,3.2085293]
[1762509529965,0.04618367,154.61,154.58,3.2085293]
[1762509530269,9.87678143,154.6,154.58,3.2085293]
[1762509530464,0.04618367,154.61,154.58,3.2085293]
[1762509530762,9.87668865,154.6,154.58,3.2085293]
[1762509530964,0.04618367,154.61,154.58,3.2085293]
[1762509531164,4.87522573,154.6,154.58,3.2085293]
[1762509531365,9.87616369,154.59,154.58,0.0485293]
[1762509531558,9.93616123,154.59,154.58,0.0485293]
[1762509531761,11.70376065,154.59,154.58,0.0485293]
[1762509532467,0.06,154.57,154.51,3.06]
[1762509532670,1.82759942,154.54,154.46,3.06]
[1762509532970,1.76759942,154.52,154.46,3.06]
[1762509533264,1.76759942,154.52,154.48,3.06]
[1762509533569,1.76759942,154.52,154.48,3.10828212]
[1762509533570,9.92338422,154.51,154.48,3.10828212]
[1762509533870,0.06,154.51,154.48,3.10828212]
[1762509534071,5.8882,154.51,154.48,3.10828212]
[1762509535069,5.8282,154.51,154.48,3.10828212]
[1762509535270,0.04634734,154.52,154.48,3.10828212]
[1762509536567,0.10634734,154.52,154.48,3.10828212]
[1762509537465,5.87414734,154.52,154.48,3.10828212]
[1762509538467,0.04634734,154.52,154.48,3.10828212]
[1762509540774,0.04634734,154.52,154.5,3.06]
[1762509545076,0.04634734,154.52,154.51,3.06]
[1762509549678,0.06,154.59,154.51,3.06]
[1762509550672,4.90664108,154.58,154.53,0.04825589]
[1762509550876,0.14213388,154.57,154.54,0.04528582]
[1762509551066,5.96803388,154.57,154.54,0.04528582]
[1762509551572,0.1,154.56,154.54,0.04528582]
[1762509551970,5.96803388,154.57,154.54,0.04528582]
[1762509552170,0.14213388,154.57,154.54,0.04528582]
[1762509552365,0.04213388,154.57,154.54,3.10528582]
[1762509552572,0.00213388,154.57,154.56,3.06]
[1762509552774,0.1,154.65,154.56,3.06]
[1762509552971,9.77919001,154.64,154.56,3.06]
[1762509553173,9.77919001,154.63,154.57,5.8257]
[1762509553366,0.1,154.65,154.58,3.06]
[1762509553774,0.1,154.65,154.49,11.6573]
[1762509553775,0.04221649,154.63,154.6,3.10721257]
[1762509553971,0.0492969,154.63,154.6,3.10226967]
[1762509554278,9.77692584,154.62,154.6,3.02226967]
[1762509554472,0.0492969,154.63,154.6,3.02226967]
[1762509554977,0.0492969,154.63,154.62,2.98]
[1762509556170,0.14,154.68,154.62,2.98]
[1762509556371,4.97021712,154.67,154.62,2.98]
[1762509556572,2.90168869,154.7,154.62,2.98]
[1762509556783,9.91423013,154.69,154.62,2.98]
[1762509557080,9.91423013,154.68,154.62,2.98]
[1762509557277,0.18435282,154.67,154.63,3.0275108]
[1762509557485,0.18818961,154.67,154.63,3.0275108]
[1762509559873,0.14,154.66,154.63,0.0475108]
[1762509560383,0.14,154.66,154.63,3.0275108]
[1762509561288,0.14,154.65,154.63,0.0475108]
[1762509561987,0.04818961,154.67,154.63,3.0275108]
[1762509563882,0.18818961,154.67,154.63,3.0275108]
[1762509564077,0.14,154.66,154.63,0.0475108]
[1762509564274,0.04818961,154.67,154.63,3.0275108]
[1762509565988,0.14,154.66,154.63,0.0475108]
[1762509566590,0.14,154.66,154.63,3.0275108]
[1762509567288,5.8229,154.65,154.63,3.0275108]
[1762509568091,0.04818961,154.67,154.63,3.0275108]
[1762509568288,0.18818961,154.67,154.63,3.0275108]
[1762509568683,5.8225,154.66,154.63,3.0275108]
[1762509570095,0.04818961,154.67,154.63,3.0275108]
[1762509571592,0.04818961,154.67,154.64,5.823]
[1762509571795,0.04818961,154.67,154.65,2.98]
[1762509581096,0.15,154.77,154.68,3.24]
[1762509581398,5.10882109,154.76,154.68,3.24]
[1762509581598,0.19,154.76,154.68,3.24]
[1762509582001,5.86165,154.74,154.7,3.28532573]
[1762509582698,0.04215,154.74,154.7,9.10612573]
[1762509582999,0.04215,154.74,154.71,3.24]
[1762509583795,0.23215,154.74,154.7,3.28532573]
[1762509583995,0.23215,154.74,154.7,0.04532573]
[1762509584200,0.19,154.73,154.7,0.04532573]
[1762509584604,6.0102,154.72,154.7,0.04532573]
[1762509586402,0.04215,154.74,154.7,3.13532573]
[1762509587110,5.86155,154.74,154.71,3.09]
[1762509589002,6.05155,154.74,154.71,3.09]
[1762509589205,6.0098,154.73,154.7,0.04532573]
[1762509589804,6.0098,154.73,154.7,3.13532573]
[1762509590005,0.19,154.71,154.7,0.04532573]
[1762509590199,5.8203,154.72,154.7,0.04532573]
[1762509590406,6.0103,154.72,154.7,0.04532573]
[1762509591505,0.04215,154.74,154.7,0.04532573]
[1762509591697,0.19,154.72,154.7,0.04532573]
[1762509592101,0.19,154.71,154.7,0.04532573]
[1762509593005,0.19,154.71,154.62,22.4943438]
[1762509593203,9.69665069,154.7,154.63,3.09]
[1762509593406,4.92683745,154.69,154.63,3.09]
[1762509593704,4.92683745,154.68,154.63,3.09]
[1762509593901,6.0117,154.68,154.63,3.09]
[1762509594108,0.23772698,154.67,154.64,3.13845207]
[1762509594305,0.23772698,154.67,154.64,0.04845207]
[1762509594500,5.86982698,154.67,154.64,3.13845207]
[1762509594706,0.04772698,154.67,154.64,3.13845207]
[1762509595806,5.86982698,154.67,154.64,3.13845207]
[1762509596207,4.9401716,154.66,154.64,3.13845207]
[1762509596410,5.86982698,154.67,154.64,3.13845207]
[1762509596709,4.9401716,154.66,154.64,3.13845207]
[1762509596909,5.86982698,154.67,154.64,3.13845207]
[1762509597212,4.9401716,154.66,154.64,3.13845207]
[1762509597402,5.86982698,154.67,154.64,3.13845207]
[1762509597602,4.94431136,154.66,154.64,3.13845207]
[1762509597808,5.86982698,154.67,154.64,3.13845207]
[1762509598000,4.94431136,154.66,154.64,3.13845207]
[1762509598207,0.04772698,154.67,154.64,3.13845207]
[1762509599711,0.24,154.74,154.68,3.09]
[1762509599902,0.24,154.72,154.66,2.76168869]
[1762509600108,9.5454782,154.71,154.65,3.09]
[1762509600306,0.24,154.69,154.61,5.85168869]
[1762509600510,9.5454782,154.68,154.62,3.09]
[1762509600713,4.99302159,154.67,154.64,3.09]
[1762509600913,0.04403582,154.67,154.64,3.09]
[1762509602010,5.86613582,154.67,154.64,3.09]
[1762509602410,0.04403582,154.67,154.64,3.09]
[1762509603911,4.94877986,154.66,154.64,3.09]
[1762509604111,0.28403582,154.67,154.64,3.09]
[1762509604305,4.94847698,154.66,154.63,3.13277423]
[1762509604517,6.10613582,154.67,154.63,3.13277423]
[1762509604719,4.94861918,154.66,154.63,3.13277423]
[1762509605017,6.10613582,154.67,154.63,3.13277423]
[1762509605317,4.94949387,154.66,154.63,3.13277423]
[1762509605613,6.10613582,154.67,154.63,3.13277423]
[1762509605816,4.94957769,154.66,154.63,3.13277423]
[1762509606020,0.28403582,154.67,154.63,3.13277423]
[1762509606406,0.04403582,154.67,154.63,3.13277423]
[1762509607421,0.04403582,154.67,154.66,3.09]
[1762509607613,4.56077179,154.73,154.66,3.09]
[1762509607828,9.51038505,154.72,154.66,3.09]
[1762509608021,9.51038505,154.71,154.66,3.09]
[1762509608219,4.94961326,154.7,154.66,3.09]
[1762509608418,5.23909767,154.69,154.62,3.09]
[1762509608626,0.29,154.67,154.64,3.13475516]
[1762509608819,0.29,154.67,154.64,3.13096286]
[1762509609022,0.29,154.73,154.64,3.13096286]
[1762509609224,0.29,154.71,154.67,0.04699594]
[1762509609424,0.29,154.69,154.67,0.04699594]
[1762509609628,9.50857939,154.68,154.67,0.04699594]
[1762509609829,4.94837497,154.68,154.67,0.04699594]
[1762509610027,10.77007497,154.68,154.67,0.04699594]
[1762509610821,11.06007497,154.68,154.67,0.04699594]
[1762509611538,4.94837497,154.68,154.67,3.13699594]
[1762509611836,4.56339031,154.73,154.68,3.09]
[1762509612136,0.29,154.77,154.7,4.85626004]
[1762509612337,0.29,154.75,154.72,0.04721614]
[1762509612522,0.29,154.73,154.72,0.04721614]
[1762509612723,0.29,154.72,154.67,3.09]
[1762509612935,4.85243007,154.71,154.67,3.09]
[1762509613139,4.56243007,154.7,154.67,3.09]
[1762509613434,0.29,154.71,154.67,3.09]
[1762509613630,6.15818222,154.71,154.68,3.09]
[1762509613836,0.33748222,154.71,154.68,3.09]
[1762509614540,6.15818222,154.71,154.68,3.09]
[1762509615840,0.04748222,154.71,154.69,5.8212]
[1762509616035,0.04748222,154.71,154.7,3.13]
[1762509617836,0.32748222,154.71,154.68,3.13]
[1762509618036,0.04748222,154.71,154.68,3.13]
[1762509618427,0.04748222,154.71,154.7,3.13]
[1762509618836,6.22917087,154.79,154.75,3.13]
[1762509619141,6.22917087,154.85,154.75,3.13]
[1762509619333,4.56544996,154.84,154.75,3.13]
[1762509619533,4.56544996,154.83,154.75,3.13]
[1762509619730,4.56544996,154.82,154.79,3.13]
[1762509619941,6.1454,154.85,154.79,3.17604994]
[1762509620142,4.56229988,154.84,154.81,3.13]
[1762509620438,1.12417625,154.91,154.81,0.04173692]
[1762509620439,0.33,154.87,154.81,0.04173692]